[Event "59th BRA-ch Women 2020"]
[Site "Rio de Janeiro"]
[Date "2020.01.11"]
[Round "1.1"]
[White "Gazola, Vanessa Ramos"]
[Black "Tamarozi, Isabelle"]
[Result "1-0"]
[ECO "E81"]
[WhiteElo "1996"]
[BlackElo "1978"]
[Annotator "NA"]
[PlyCount "55"]
[EventDate "2020.01.11"]
[EventType "k.o."]
[EventCountry "BRA"]
[SourceTitle "playchess.com"]
[Source "ChessBase"]
[SourceQuality "1"]
[TimeControl "5400+30"]

1. d4 {[%emt 0:02:19]} Nf6 {[%emt 0:00:00]} 2. c4 {[%emt 0:00:17]} g6 {[%emt 0:00:11]} 3. Nc3 {[%emt 0:00:19]} Bg7 {[%emt 0:00:21]} 4. e4 {[%emt 0:00:21]} d6 {[%emt 0:00:23]} 5. f3 {[%emt 0:00:22]} O-O {[%emt 0:00:44]} 6. Bg5 {[%emt 0:00:18]} e5 {[%emt 0:09:34]} 7. dxe5 {[%emt 0:02:19]} dxe5 {[%emt 0:00:18]} 8. Qxd8 {[%emt 0:00:06]} Rxd8 {[%emt 0:00:06]} 9. Nd5 {[%emt 0:00:05]} Nxd5 {[%emt 0:04:00] E81: King's Indian: Sämisch: 6th move deviations (including 6 Be3 c6)} 10. Bxd8 {[%emt 0:00:47]} Nb4 {[%emt 0:05:10]} (10... Ne3 11. Kf2 Nxf1 12. Rxf1 Na6 13. Rd1 Be6 14. b3 Bf8 15. Bg5 Nb4 16. Rd2 c5 17. Ne2 {1-0 (42) Rios,C (2540)-Gonzalez Parejo,R (2152) Quibdo 2015}) 11. O-O-O {[%emt 0:14:21]} Nxa2+ {[%emt 0:03:29]} 12. Kb1 {[%emt 0:00:28]} Nb4 {[%emt 0:00:13]} 13. Bxc7 {[%emt 0:00:07]} N8c6 {[%emt 0:01:41]} 14. Ne2 {[%emt 0:01:05]} Be6 $146 {[%emt 0:08:36]} ({Predecessor:} 14... f5 15. Nc3 Nd4 16. Nd5 Bd7 17. Nxb4 {1-0 (17) Soln,P (2280)-Wuerschinger,W (1800) Finkenstein 1995}) 15. Nc3 {[%emt 0:01:45]} Nd4 {[%emt 0:08:04]} 16. Bd6 {[%emt 0:06:32]} a5 {[%emt 0:10:13]} 17. Nd5 {[%emt 0:08:59]} Nxd5 {[%emt 0:02:40]} 18. cxd5 {[%emt 0:01:14]} Bd7 {[%emt 0:01:37]} 19. Rc1 {[%emt 0:02:49]} Ba4 {[%emt 0:05:27]} 20. Rc7 {[%emt 0:09:23]} b5 {[%emt 0:04:16]} 21. Bd3 {[%emt 0:01:58]} h5 {[%emt 0:11:17]} 22. Rhc1 {[%emt 0:04:50]} Nb3 {[%emt 0:10:14]} 23. Rc8+ $18 {[%emt 0:01:20]} Rxc8 {[%emt 0:00:33]} 24. Rxc8+ {[%emt 0:00:06]} Kh7 {[%emt 0:00:08]} 25. Bc2 {[%emt 0:03:09]} Nd2+ {[%emt 0:05:20]} 26. Ka2 {[%emt 0:02:50]} Bxc2 {[%emt 0:02:30]} 27. Rxc2 {[%emt 0:00:07]} Nc4 {[%emt 0:01:06]} 28. Rxc4 {[%emt 0:00:56]} 1-0

[Event "59th BRA-ch Women 2020"]
[Site "Rio de Janeiro"]
[Date "2020.01.11"]
[Round "1.1"]
[White "Vieira, Julia"]
[Black "Terao, Juliana Sayumi"]
[Result "0-1"]
[ECO "A03"]
[WhiteElo "1779"]
[BlackElo "2232"]
[Annotator "ChessBase"]
[PlyCount "52"]
[EventDate "2020.01.11"]
[EventType "k.o."]
[EventCountry "BRA"]
[SourceTitle "playchess.com"]
[Source "ChessBase"]
[SourceQuality "1"]
[TimeControl "5400+30"]

1. f4 {[%emt 0:00:00]} c5 {[%emt 0:00:26]} 2. Nf3 {[%emt 0:00:00]} e6 {[%emt 0:00:32]} 3. g3 {[%emt 0:01:23]} d5 {[%emt 0:04:27]} 4. Bg2 {[%emt 0:00:23]} Nc6 {[%emt 0:00:25]} 5. O-O {[%emt 0:01:22]} Nf6 {[%emt 0:01:10]} 6. d3 {[%emt 0:02:35]} Be7 {[%emt 0:03:41]} 7. Qe1 {[%emt 0:03:11]} O-O {[%emt 0:11:20]} 8. h3 {[%emt 0:06:34]} b5 {[%emt 0:04:04]} 9. a4 {[%emt 0:19:07]} b4 {[%emt 0:01:02]} 10. Nbd2 {[%emt 0:03:58]} Ba6 {[%emt 0:01:57]} 11. g4 {[%emt 0:06:16]} Rc8 {[%emt 0:04:35]} 12. c3 {[%emt 0:13:58]} Bd6 {[%emt 0:03:07]} 13. g5 {[%emt 0:07:22]} Nh5 {[%emt 0:00:20]} 14. Qh4 {[%emt 0:12:48]} Nxf4 {[%emt 0:00:28]} 15. Rf2 {[%emt 0:01:27]} Ng6 {[%emt 0:02:42]} 16. Qh5 {[%emt 0:01:39]} Bg3 {[%emt 0:00:39]} 17. Nf1 {[%emt 0:02:51]} Bxf2+ {[%emt 0:00:08]} 18. Kxf2 {[%emt 0:00:13]} e5 {[%emt 0:01:37]} 19. Ng3 {[%emt 0:02:12]} Qd7 {[%emt 0:06:46]} 20. Bd2 {[%emt 0:03:08]} bxc3 {[%emt 0:03:35]} 21. Bxc3 {[%emt 0:02:11]} Rce8 {[%emt 0:01:20]} 22. Rf1 {[%emt 0:08:22]} f5 {[%emt 0:02:45]} 23. gxf6 Rxf6 {[%emt 0:00:07]} 24. Kg1 {[%emt 0:00:00]} Nf4 {[%emt 0:01:20]} 25. Qh4 {[%emt 0:00:00]} Rg6 {[%emt 0:03:41]} 26. Nxe5 {[%emt 0:00:00]} Nxg2 {[%emt 0:03:10]} 0-1

[Event "59th BRA-ch Women 2020"]
[Site "Rio de Janeiro"]
[Date "2020.01.12"]
[Round "1.2"]
[White "Terao, Juliana Sayumi"]
[Black "Vieira, Julia"]
[Result "1-0"]
[ECO "B03"]
[WhiteElo "2232"]
[BlackElo "1779"]
[Annotator "NA"]
[PlyCount "87"]
[EventDate "2020.01.11"]
[EventType "k.o."]
[EventCountry "BRA"]
[SourceTitle "playchess.com"]
[Source "ChessBase"]
[SourceQuality "1"]
[TimeControl "5400+30"]

1. e4 {[%emt 0:00:00]} Nf6 {[%emt 0:00:00]} 2. e5 {[%emt 0:00:09]} Nd5 {[%emt 0:00:10]} 3. d4 {[%emt 0:00:02]} d6 {[%emt 0:00:00]} 4. c4 {[%emt 0:00:30]} Nb6 {[%emt 0:00:08]} 5. exd6 {[%emt 0:00:30]} cxd6 {[%emt 0:00:30]} 6. Nc3 {[%emt 0:00:00]} g6 {[%emt 0:00:00]} 7. Be3 {[%emt 0:00:00]} Bg7 {[%emt 0:00:00]} 8. Rc1 {[%emt 0:00:02]} O-O {[%emt 0:00:17]} 9. b3 {[%emt 0:00:35]} e5 {[%emt 0:01:31]} 10. dxe5 {[%emt 0:00:59]} dxe5 {[%emt 0:00:37]} 11. Qxd8 {[%emt 0:00:14]} Rxd8 {[%emt 0:00:11]} 12. c5 {[%emt 0:00:08]} N6d7 {[%emt 0:00:26]} 13. Nf3 {[%emt 0:01:22]} Nc6 {[%emt 0:00:24]} 14. Bc4 {[%emt 0:00:44]} Na5 {[%emt 0:02:42]} 15. Be2 {[%emt 0:01:09]} Nf8 {[%emt 0:00:20]} 16. O-O {[%emt 0:02:16]} Ne6 {[%emt 0:02:17]} 17. Rfd1 {[%emt 0:15:29]} Bd7 {[%emt 0:02:02]} 18. b4 {[%emt 0:17:25]} Nc6 {[%emt 0:00:14]} 19. Nd5 {[%emt 0:00:50]} Ncd4 {[%emt 0:10:48]} 20. Bc4 {[%emt 0:12:12]} Nxf3+ {[%emt 0:02:12]} 21. gxf3 {[%emt 0:00:05]} Kf8 {[%emt 0:04:51]} 22. f4 {[%emt 0:25:24]} Ba4 {[%emt 0:09:48]} 23. Rd3 {[%emt 0:03:47]} e4 {[%emt 0:02:20]} 24. Rd2 {[%emt 0:00:32]} Rac8 {[%emt 0:05:14]} 25. Nc3 {[%emt 0:01:51]} Rxd2 {[%emt 0:01:28]} 26. Bxd2 {[%emt 0:00:32]} Rd8 {[%emt 0:04:47]} 27. Be3 {[%emt 0:00:14]} Bxc3 {[%emt 0:01:33]} 28. Rxc3 {[%emt 0:00:04]} Rd1+ {[%emt 0:00:22]} 29. Kg2 {[%emt 0:00:03]} Nd4 {[%emt 0:05:32]} 30. Bxd4 Rxd4 {[%emt 0:00:02]} 31. b5 {[%emt 0:10:22]} f5 {[%emt 0:03:12]} 32. Be2 {[%emt 0:02:06]} Ke7 {[%emt 0:01:39]} 33. c6 {[%emt 0:00:39]} Rd8 {[%emt 0:04:04]} 34. Ra3 {[%emt 0:01:02]} Bc2 {[%emt 0:02:37]} 35. Rxa7 {[%emt 0:00:10]} Bd3 {[%emt 0:02:24]} 36. Rxb7+ {[%emt 0:00:06]} Ke6 {[%emt 0:01:35]} 37. Bd1 {[%emt 0:00:30]} e3 {[%emt 0:04:59]} 38. fxe3 {[%emt 0:00:06]} Be4+ {[%emt 0:00:19]} 39. Bf3 {[%emt 0:00:05]} Rd2+ {[%emt 0:00:21]} 40. Kg3 {[%emt 0:00:05]} Bxf3 {[%emt 0:00:27]} 41. Kxf3 {[%emt 0:00:05]} Rxh2 {[%emt 0:00:50]} 42. c7 {[%emt 0:00:43]} Kd7 {[%emt 0:00:36]} 43. b6 {[%emt 0:00:07]} Rxa2 {[%emt 0:00:19]} 44. Rb8 {[%emt 0:00:11]} 1-0

[Event "59th BRA-ch Women 2020"]
[Site "Rio de Janeiro"]
[Date "2020.01.12"]
[Round "1.2"]
[White "Librelato, Kathie Goulart"]
[Black "Medeiros, Thauane Ferreira"]
[Result "1-0"]
[ECO "B43"]
[WhiteElo "2175"]
[BlackElo "1971"]
[Annotator "ChessBase"]
[PlyCount "47"]
[EventDate "2020.01.11"]
[EventType "k.o."]
[EventCountry "BRA"]
[SourceTitle "playchess.com"]
[Source "ChessBase"]
[SourceQuality "1"]
[TimeControl "5400+30"]

1. e4 {[%emt 0:00:00]} c5 {[%emt 0:00:00]} 2. Nf3 {[%emt 0:00:30]} d6 {[%emt 0:00:30]} 3. d4 {[%emt 0:00:30]} cxd4 {[%emt 0:00:30]} 4. Nxd4 {[%emt 0:00:30]} Nf6 {[%emt 0:00:30]} 5. Nc3 {[%emt 0:00:30]} Nc6 {[%emt 0:00:30]} 6. Nb3 {[%emt 0:00:30]} a6 {[%emt 0:00:30]} 7. Bd3 {[%emt 0:00:30]} e6 {[%emt 0:00:30]} 8. O-O {[%emt 0:00:30]} Be7 {[%emt 0:00:30]} 9. f4 {[%emt 0:00:30]} O-O {[%emt 0:00:30]} 10. Qf3 {[%emt 0:00:30]} Qc7 {[%emt 0:00:30]} 11. Bd2 {[%emt 0:00:30]} b5 {[%emt 0:00:30]} 12. Rae1 {[%emt 0:00:30]} Bb7 {[%emt 0:00:30]} 13. Qh3 {[%emt 0:00:30]} Nd7 {[%emt 0:00:30]} 14. Re3 {[%emt 0:00:30]} Rfe8 {[%emt 0:00:30]} 15. Rg3 {[%emt 0:00:30]} Nb4 {[%emt 0:55:03]} 16. Nxb5 {[%emt 0:51:07]} axb5 {[%emt 0:00:30]} 17. Bxb4 {[%emt 0:00:30]} e5 {[%emt 0:09:53]} 18. Kh1 {[%emt 0:16:55]} Bc6 {[%emt 0:10:19]} 19. Qh6 {[%emt 0:06:51]} g6 {[%emt 0:00:30]} 20. Rh3 {[%emt 0:00:30]} Nf8 {[%emt 0:02:45]} 21. f5 {[%emt 0:01:03]} Qd8 {[%emt 0:01:41]} 22. fxg6 {[%emt 0:01:16]} Bg5 {[%emt 0:02:26]} 23. gxf7+ {[%emt 0:01:13]} Kh8 {[%emt 0:00:13]} 24. fxe8=Q {[%emt 0:00:45]} 1-0

[Event "59th BRA-ch Women 2020"]
[Site "Rio de Janeiro"]
[Date "2020.01.12"]
[Round "1.2"]
[White "Tamarozi, Isabelle"]
[Black "Gazola, Vanessa Ramos"]
[Result "1/2-1/2"]
[ECO "B33"]
[WhiteElo "1978"]
[BlackElo "1996"]
[Annotator "NA"]
[PlyCount "70"]
[EventDate "2020.01.11"]
[EventType "k.o."]
[EventCountry "BRA"]
[SourceTitle "playchess.com"]
[Source "ChessBase"]
[SourceQuality "1"]
[TimeControl "5400+30"]

1. e4 {[%emt 0:04:28]} c5 {[%emt 0:00:00]} 2. Nf3 {[%emt 0:00:46]} Nc6 {[%emt 0:00:00]} 3. d4 {[%emt 0:00:38]} cxd4 {[%emt 0:00:06]} 4. Nxd4 {[%emt 0:00:15]} Nf6 {[%emt 0:00:15]} 5. Nc3 {[%emt 0:00:52]} e5 {[%emt 0:00:15]} 6. Ndb5 {[%emt 0:01:41]} d6 {[%emt 0:00:12]} 7. Bg5 {[%emt 0:03:45]} a6 {[%emt 0:00:21]} 8. Na3 {[%emt 0:00:18]} b5 {[%emt 0:00:20]} 9. Nd5 {[%emt 0:00:37]} Be7 {[%emt 0:00:22]} 10. Bxf6 {[%emt 0:01:12]} Bxf6 {[%emt 0:00:17]} 11. c4 {[%emt 0:04:24]} b4 {[%emt 0:00:14]} 12. Nc2 {[%emt 0:00:11]} a5 {[%emt 0:02:58]} 13. g3 {[%emt 0:08:22] B33: Sicilian: Pelikan and Sveshnikov Variations} O-O {[%emt 0:05:06]} 14. Bg2 {[%emt 0:10:14]} Bg5 {[%emt 0:08:35]} 15. O-O {[%emt 0:05:13]} Be6 {[%emt 0:04:08]} (15... Ne7 16. Nce3 Bxe3 17. Nxe3 Be6 18. b3 Ra7 19. Qd3 {½-½ (52) Nepomniachtchi,I (2776)-Yu,Y (2763) Khanty-Mansiysk 2019}) 16. b3 {[%emt 0:08:10]} Ne7 {[%emt 0:05:19]} 17. f4 {[%emt 0:12:11]} Bxd5 {[%emt 0:04:50]} 18. fxg5 {[%emt 0:02:26]} Be6 {[%emt 0:02:23]} 19. Qd2 $146 {[%emt 0:06:16]} ({Predecessor:} 19. h4) 19... Qb6+ {[%emt 0:07:39]} 20. Kh1 {[%emt 0:02:59]} Rfd8 {[%emt 0:00:45]} 21. Qf2 {[%emt 0:17:19]} Qxf2 {[%emt 0:06:09]} 22. Rxf2 {[%emt 0:00:05]} Nc6 {[%emt 0:00:08]} 23. Bf3 {[%emt 0:03:55]} Kf8 {[%emt 0:03:48]} 24. Rd2 {[%emt 0:00:30]} Ke7 {[%emt 0:02:44]} 25. Ne3 {[%emt 0:01:20]} Nd4 {[%emt 0:01:02]} 26. Bd1 {[%emt 0:02:03]} Ra7 {[%emt 0:05:41]} 27. Kg2 {[%emt 0:01:08]} Rh8 {[%emt 0:00:39]} 28. Rc1 $11 {[%emt 0:01:35]} Rc8 {[%emt 0:00:43]} 29. h3 {[%emt 0:00:36]} Rac7 {[%emt 0:02:25]} 30. Nc2 {[%emt 0:00:41]} Nxc2 {[%emt 0:00:54]} 31. Bxc2 {[%emt 0:00:24]} Rc5 {[%emt 0:01:19]} 32. Rcd1 {[%emt 0:00:18]} R8c6 {[%emt 0:00:08]} 33. g4 {[%emt 0:00:51]} Ra6 {[%emt 0:01:27]} 34. Kf3 {[%emt 0:00:26]} Rc8 {[%emt 0:01:39]} 35. Bd3 {[%emt 0:00:31]} Rc5 {[%emt 0:02:27]} 1/2-1/2

[Event "59th BRA-ch Women 2020"]
[Site "Rio de Janeiro"]
[Date "2020.01.12"]
[Round "1.2"]
[White "Ribeiro, Regina"]
[Black "Alboredo, Julia"]
[Result "0-1"]
[ECO "A04"]
[WhiteElo "1890"]
[BlackElo "2190"]
[Annotator "ChessBase"]
[PlyCount "94"]
[EventDate "2020.01.11"]
[EventType "k.o."]
[EventCountry "BRA"]
[SourceTitle "playchess.com"]
[Source "ChessBase"]
[SourceQuality "1"]
[TimeControl "5400+30"]

1. Nf3 {[%emt 0:00:00]} c5 {[%emt 0:05:07]} 2. g3 {[%emt 0:00:00]} g6 {[%emt 0:00:16]} 3. Bg2 {[%emt 0:00:00]} Bg7 {[%emt 0:00:22]} 4. O-O {[%emt 0:02:20]} Nc6 {[%emt 0:00:39]} 5. d3 {[%emt 0:02:40]} d6 {[%emt 0:02:10]} 6. e4 {[%emt 0:01:59]} e6 {[%emt 0:00:42]} 7. c3 {[%emt 0:00:43]} Nge7 {[%emt 0:08:29]} 8. Be3 {[%emt 0:16:38]} e5 {[%emt 0:04:29]} 9. a3 {[%emt 0:07:07]} O-O {[%emt 0:08:05]} 10. b4 {[%emt 0:00:33]} b6 {[%emt 0:00:31]} 11. b5 {[%emt 0:01:06]} Na5 {[%emt 0:00:38]} 12. c4 {[%emt 0:00:46]} f5 {[%emt 0:04:34]} 13. Bd2 {[%emt 0:04:42]} fxe4 {[%emt 0:04:57]} 14. Ng5 {[%emt 0:04:25]} Rb8 {[%emt 0:04:59]} 15. Bxa5 {[%emt 0:00:33]} bxa5 {[%emt 0:00:10]} 16. dxe4 {[%emt 0:05:08]} h6 {[%emt 0:00:37]} 17. Nf3 {[%emt 0:01:53]} Be6 {[%emt 0:01:38]} 18. Qd3 {[%emt 0:02:57]} Nc8 {[%emt 0:03:56]} 19. Nc3 {[%emt 0:01:22]} Nb6 {[%emt 0:04:24]} 20. Nd2 {[%emt 0:03:35]} Qd7 {[%emt 0:12:33]} 21. a4 {[%emt 0:05:58]} h5 {[%emt 0:09:33]} 22. Nd5 {[%emt 0:01:28]} Rbc8 {[%emt 0:02:22]} 23. Nb3 {[%emt 0:06:57]} Bxd5 {[%emt 0:03:02]} 24. exd5 {[%emt 0:29:10]} e4 {[%emt 0:17:47]} 25. Bxe4 {[%emt 0:00:00]} Bxa1 {[%emt 0:00:00]} 26. Rxa1 {[%emt 0:00:00]} Qg7 {[%emt 0:00:00]} 27. Bxg6 {[%emt 0:00:00]} Nxc4 {[%emt 0:00:00]} 28. Qxc4 {[%emt 0:00:00]} Qxg6 {[%emt 0:00:00]} 29. Nxa5 {[%emt 0:00:00]} Rxf2 {[%emt 0:00:00]} 30. Kxf2 {[%emt 0:00:00]} Qf6+ {[%emt 0:00:00]} 31. Qf4 {[%emt 0:00:00]} Qb2+ {[%emt 0:00:00]} 32. Kg1 {[%emt 0:00:00]} Qxa1+ {[%emt 0:00:00]} 33. Kg2 {[%emt 0:00:00]} Qa2+ {[%emt 0:00:00]} 34. Kh3 {[%emt 0:00:00]} Qxd5 {[%emt 0:00:00]} 35. Nc6 {[%emt 0:00:00]} Rc7 {[%emt 0:00:20]} 36. Qf6 {[%emt 0:00:00]} Qf7 {[%emt 0:01:07]} 37. Qxd6 {[%emt 0:00:00]} Qd7+ {[%emt 0:00:21]} 38. Qxd7 {[%emt 0:00:00]} Rxd7 {[%emt 0:00:05]} 39. a5 {[%emt 0:07:30]} Rc7 {[%emt 0:05:37]} 40. Kg2 {[%emt 0:00:00]} Kf7 {[%emt 0:00:00]} 41. Kf3 {[%emt 0:00:05]} Ke6 {[%emt 0:00:00]} 42. Ke4 {[%emt 0:00:41]} Kd6 {[%emt 0:00:00]} 43. a6 {[%emt 0:00:25]} Rg7 {[%emt 0:00:00]} 44. h3 {[%emt 0:00:48]} Rxg3 {[%emt 0:00:32]} 45. Nxa7 {[%emt 0:00:05]} Rb3 {[%emt 0:00:53]} 46. Nc8+ {[%emt 0:00:16]} Kc7 {[%emt 0:00:23]} 47. a7 {[%emt 0:00:26]} Ra3 {[%emt 0:00:27]} 0-1

[Event "59th BRA-ch Women 2020"]
[Site "Rio de Janeiro"]
[Date "2020.01.14"]
[Round "2.2"]
[White "Gazola, Vanessa Ramos"]
[Black "Terao, Juliana Sayumi"]
[Result "0-1"]
[ECO "A47"]
[WhiteElo "1996"]
[BlackElo "2232"]
[Annotator "ChessBase"]
[PlyCount "90"]
[EventDate "2020.01.11"]
[EventType "k.o."]
[EventCountry "BRA"]
[SourceTitle "playchess.com"]
[Source "ChessBase"]
[SourceQuality "1"]
[TimeControl "1500+10"]

1. d4 {[%emt 0:00:00]} Nf6 {[%emt 0:00:00]} 2. Nf3 {[%emt 0:00:00]} e6 {[%emt 0:00:00]} 3. g3 {[%emt 0:00:00]} c5 {[%emt 0:00:00]} 4. e3 {[%emt 0:00:00]} b6 {[%emt 0:00:00]} 5. Bg2 {[%emt 0:00:00]} Bb7 {[%emt 0:00:00]} 6. O-O {[%emt 0:00:00]} Be7 {[%emt 0:00:00]} 7. b3 {[%emt 0:00:00]} O-O {[%emt 0:00:00]} 8. Bb2 {[%emt 0:00:00]} cxd4 {[%emt 0:00:00]} 9. exd4 {[%emt 0:00:00]} Nc6 {[%emt 0:00:00]} 10. Nbd2 {[%emt 0:00:00]} d5 {[%emt 0:00:00]} 11. Ne5 {[%emt 0:00:00]} Rc8 {[%emt 0:00:00]} 12. Re1 {[%emt 0:00:00]} Ba6 {[%emt 0:00:00]} 13. c3 {[%emt 0:00:00]} Nxe5 {[%emt 0:00:00]} 14. dxe5 {[%emt 0:00:00]} Nd7 {[%emt 0:00:00]} 15. c4 {[%emt 0:00:00]} dxc4 {[%emt 0:00:00]} 16. Nxc4 {[%emt 0:00:00]} Bxc4 {[%emt 0:00:00]} 17. bxc4 {[%emt 0:00:00]} Rxc4 {[%emt 0:00:00]} 18. Bf1 {[%emt 0:00:00]} Rc7 {[%emt 0:00:00]} 19. Qg4 {[%emt 0:00:00]} Rc2 {[%emt 0:00:00]} 20. Bd4 {[%emt 0:00:00]} Bb4 {[%emt 0:00:00]} 21. Bd3 {[%emt 0:00:00]} Rd2 {[%emt 0:00:00]} 22. Red1 {[%emt 0:00:00]} Nc5 {[%emt 0:00:00]} 23. Bxc5 {[%emt 0:00:00]} bxc5 {[%emt 0:00:00]} 24. Qe4 {[%emt 0:00:00]} g6 {[%emt 0:00:00]} 25. Rxd2 {[%emt 0:00:00]} Bxd2 {[%emt 0:00:00]} 26. Rd1 {[%emt 0:00:00]} Bc3 {[%emt 0:00:00]} 27. Be2 {[%emt 0:00:22]} Bd4 {[%emt 0:00:00]} 28. Rb1 {[%emt 0:01:09]} Qa5 {[%emt 0:00:00]} 29. Bc4 {[%emt 0:01:22]} Qc3 {[%emt 0:06:01]} 30. Qd3 {[%emt 0:01:41]} Bxe5 {[%emt 0:00:32]} 31. Rb7 {[%emt 0:00:06]} Qxd3 {[%emt 0:00:43]} 32. Bxd3 {[%emt 0:00:00]} Rd8 {[%emt 0:00:00]} 33. Bb5 {[%emt 0:00:47]} a5 {[%emt 0:01:31]} 34. a4 {[%emt 0:00:07]} Kf8 {[%emt 0:01:24]} 35. Ra7 {[%emt 0:01:37]} Bc3 {[%emt 0:03:36]} 36. Rc7 {[%emt 0:00:00]} Rd5 {[%emt 0:01:38]} 37. Kg2 {[%emt 0:03:09]} Rd2 {[%emt 0:05:38]} 38. Rxc5 {[%emt 0:02:18]} Bd4 {[%emt 0:00:00]} 39. Rc8+ {[%emt 0:00:00]} Kg7 {[%emt 0:00:08]} 40. Ra8 {[%emt 0:01:00]} Rxf2+ {[%emt 0:00:00]} 41. Kh3 {[%emt 0:00:00]} Bc3 {[%emt 0:00:00]} 42. Ra7 {[%emt 0:00:00]} h5 {[%emt 0:00:00]} 43. Bc4 {[%emt 0:00:07]} e5 {[%emt 0:00:09]} 44. g4 {[%emt 0:00:13]} hxg4+ {[%emt 0:00:00]} 45. Kxg4 {[%emt 0:00:00]} Rf4+ {[%emt 0:00:00]} 0-1

[Event "59th BRA-ch Women 2020"]
[Site "Rio de Janeiro"]
[Date "2020.01.17"]
[Round "3.3"]
[White "Alboredo, Julia"]
[Black "Terao, Juliana Sayumi"]
[Result "1-0"]
[ECO "C54"]
[WhiteElo "2190"]
[BlackElo "2232"]
[Annotator "ChessBase"]
[PlyCount "61"]
[EventDate "2020.01.11"]
[EventType "k.o."]
[EventCountry "BRA"]
[SourceTitle "playchess.com"]
[Source "ChessBase"]
[SourceQuality "1"]
[TimeControl "40/5400+30:1800+30"]

1. e4 {[%emt 0:00:00]} e5 {[%emt 0:00:00]} 2. Nf3 {[%emt 0:00:00]} Nc6 {[%emt 0:00:00]} 3. d4 {[%emt 0:00:00]} exd4 {[%emt 0:00:00]} 4. Bc4 {[%emt 0:00:14]} Bc5 {[%emt 0:00:49]} 5. c3 {[%emt 0:00:11]} Nf6 {[%emt 0:01:08]} 6. e5 {[%emt 0:00:32]} d5 {[%emt 0:00:40]} 7. Be2 {[%emt 0:00:18]} Ne4 {[%emt 0:01:42]} 8. cxd4 {[%emt 0:00:18]} Bb6 {[%emt 0:01:05]} 9. O-O {[%emt 0:01:57]} O-O {[%emt 0:00:37]} 10. Nc3 {[%emt 0:00:34]} Bg4 {[%emt 0:09:26]} 11. Be3 {[%emt 0:01:33]} Nxc3 {[%emt 0:16:01]} 12. bxc3 {[%emt 0:00:07]} f6 {[%emt 0:04:08]} 13. exf6 {[%emt 0:08:53]} Qxf6 {[%emt 0:00:09]} 14. Qb3 {[%emt 0:01:30]} Qd6 {[%emt 0:02:10]} 15. Rfe1 {[%emt 0:06:14]} Na5 {[%emt 0:01:53]} 16. Qc2 {[%emt 0:02:13]} Bxf3 {[%emt 0:03:48]} 17. Bxf3 {[%emt 0:00:07]} c6 {[%emt 0:00:19]} 18. Be2 {[%emt 0:03:31]} Nc4 {[%emt 0:01:16]} 19. Bd3 {[%emt 0:01:28]} g6 {[%emt 0:00:13]} 20. Bg5 {[%emt 0:05:32]} Rfe8 {[%emt 0:10:11]} 21. h4 {[%emt 0:08:05]} Re6 {[%emt 0:02:03]} 22. Re2 {[%emt 0:11:19]} Bd8 {[%emt 0:10:36]} 23. Rae1 {[%emt 0:07:53]} Rxe2 {[%emt 0:00:36]} 24. Qxe2 {[%emt 0:00:07]} Bxg5 {[%emt 0:00:15]} 25. hxg5 {[%emt 0:00:10]} b5 {[%emt 0:04:39]} 26. Qg4 {[%emt 0:02:42]} Rf8 {[%emt 0:14:27]} 27. Re6 {[%emt 0:07:32]} Qa3 {[%emt 0:02:09]} 28. Bxg6 {[%emt 0:06:58]} Kg7 {[%emt 0:05:41]} 29. Qh5 {[%emt 0:09:18]} Qc1+ {[%emt 0:00:23]} 30. Kh2 {[%emt 0:00:05]} Qf4+ {[%emt 0:00:04]} 31. Kh3 {[%emt 0:00:38]} 1-0

[Event "59th BRA-ch Women 2020"]
[Site "Rio de Janeiro"]
[Date "2020.01.18"]
[Round "3.4"]
[White "Terao, Juliana Sayumi"]
[Black "Alboredo, Julia"]
[Result "1-0"]
[ECO "A36"]
[WhiteElo "2232"]
[BlackElo "2190"]
[Annotator "ChessBase"]
[PlyCount "61"]
[EventDate "2020.01.11"]
[EventType "k.o."]
[EventCountry "BRA"]
[SourceTitle "playchess.com"]
[Source "ChessBase"]
[SourceQuality "1"]
[TimeControl "40/5400+30:1800+30"]

1. e4 {[%emt 0:00:00]} c5 {[%emt 0:00:00]} 2. c4 {[%emt 0:00:00]} Nc6 {[%emt 0:04:35]} 3. Ne2 {[%emt 0:00:00]} e5 {[%emt 0:05:55]} 4. g3 {[%emt 0:00:41]} g6 {[%emt 0:02:40]} 5. Bg2 {[%emt 0:00:07]} Bg7 {[%emt 0:00:09]} 6. d3 {[%emt 0:00:20]} Nge7 {[%emt 0:00:32]} 7. Nbc3 {[%emt 0:00:29]} O-O {[%emt 0:00:39]} 8. O-O {[%emt 0:00:06]} d6 {[%emt 0:00:12]} 9. Rb1 {[%emt 0:00:22]} Be6 {[%emt 0:03:08]} 10. a3 {[%emt 0:00:56]} Qd7 {[%emt 0:04:52]} 11. b4 {[%emt 0:01:25]} Nd8 {[%emt 0:02:44]} 12. Be3 {[%emt 0:02:35]} Rc8 {[%emt 0:00:58]} 13. Qd2 {[%emt 0:03:20]} f5 {[%emt 0:03:32]} 14. bxc5 {[%emt 0:07:00]} dxc5 {[%emt 0:00:17]} 15. Nd5 {[%emt 0:00:22]} b6 {[%emt 0:03:28]} 16. Rfe1 {[%emt 0:05:17]} Nf7 {[%emt 0:03:53]} 17. Nec3 {[%emt 0:04:33]} Nc6 {[%emt 0:01:45]} 18. a4 {[%emt 0:06:32]} Nd6 {[%emt 0:03:38]} 19. Nb5 {[%emt 0:13:54]} Bxd5 {[%emt 0:13:14]} 20. exd5 {[%emt 0:00:21]} Nb4 {[%emt 0:01:27]} 21. f4 {[%emt 0:04:49]} a6 {[%emt 0:07:43]} 22. Nxd6 {[%emt 0:02:19]} Qxd6 {[%emt 0:00:07]} 23. Kh1 {[%emt 0:00:59]} a5 {[%emt 0:01:33]} 24. Re2 {[%emt 0:02:16]} Rfe8 {[%emt 0:02:02]} 25. Rbe1 {[%emt 0:01:21]} Kf7 {[%emt 0:03:28]} 26. fxe5 {[%emt 0:02:30]} Bxe5 {[%emt 0:00:17]} 27. Bg5 {[%emt 0:00:16]} Na6 {[%emt 0:03:17]} 28. Bf3 {[%emt 0:07:27]} Nb8 {[%emt 0:01:25]} 29. g4 {[%emt 0:00:48]} f4 {[%emt 0:01:43]} 30. Rxe5 {[%emt 0:00:22]} Rxe5 {[%emt 0:00:12]} 31. Qxf4+ {[%emt 0:00:17]} 1-0